fUST/lending_fUST_20250726
["ID","MTS","AMOUNT","RATE_DAILY","PERIOD"]
[375138973,1753541443126,-1042.45,0.00021095,2]
[375138974,1753541443135,-460.0,0.00021095,2]
[375138975,1753541443145,-532.76691337,0.00021095,2]
[375138976,1753541443155,-376.40490601,0.00021095,2]
[375138977,1753541443165,-259.200942,0.00021095,2]
[375138979,1753541443175,-769.3,0.00021095,2]
[375138980,1753541443184,-460.0,0.00021095,2]
[375138981,1753541443194,-1681.34,0.00021095,2]
[375138982,1753541443204,-513.58,0.00021095,2]
[375138983,1753541443214,-460.0,0.00021095,2]
[375138984,1753541443223,-460.0,0.00021095,2]
[375138985,1753541443340,-155.7,0.00021095,2]
[375138986,1753541443351,-669.27,0.00021095,2]
[375138987,1753541443361,-460.0,0.00021095,2]
[375138988,1753541443371,-990.26,0.00021095,2]
[375138989,1753541443381,-460.0,0.00021095,2]
[375138990,1753541443391,-460.0,0.00021095,2]
[375138991,1753541443401,-487.0,0.00021096,2]
[375138992,1753541443410,-500.0,0.00021096,2]
[375138993,1753541443420,-460.0,0.00021269,2]
[375138994,1753541443429,-176.10048466,0.00021269,2]
[375138995,1753541443439,-460.0,0.00021369,2]
[375138996,1753541443448,-460.0,0.00021369,2]
[375138997,1753541443458,-151.0,0.00021369,2]
[375138998,1753541443468,-151.0,0.00021369,2]
[375138999,1753541443478,-1718.41,0.00021369,2]
[375139000,1753541443487,-460.0,0.00021369,2]
[375139001,1753541443496,-530.98,0.00021369,2]
[375139002,1753541443506,-151.0,0.00021369,2]
[375139003,1753541443515,-559.65,0.00021369,2]
[375139004,1753541443525,-460.0,0.00021369,2]
[375139005,1753541443535,-151.0,0.00021369,2]
[375139006,1753541443544,-945.39,0.00021369,2]
[375139007,1753541443554,-460.0,0.00021369,2]
[375139008,1753541443564,-492.31,0.00021369,2]
[375139009,1753541443575,-460.0,0.00021369,2]
[375139010,1753541443585,-460.0,0.00021369,2]
[375139011,1753541443595,-2033.68,0.00021369,2]
[375139012,1753541443605,-1427.28,0.00021369,2]
[375139013,1753541443615,-391.82163,0.00021369,2]
[375139014,1753541443624,-391.82163,0.00021369,2]
[375139015,1753541443634,-1042.45,0.00021369,2]
[375139016,1753541443643,-460.0,0.00021369,2]
[375139017,1753541443652,-769.3,0.00021369,2]
[375139018,1753541443662,-265.66949374,0.00021369,2]
[375139019,1753541443672,-1681.34,0.00021369,2]
[375139020,1753541443681,-513.58,0.00021369,2]
[375139021,1753541443691,-460.0,0.00021369,2]
[375139022,1753541443700,-460.0,0.00021369,2]
[375139023,1753541443710,-669.27,0.00021369,2]
[375139024,1753541443719,-460.0,0.00021369,2]
[375139025,1753541443729,-990.26,0.00021369,2]
[375139026,1753541443740,-460.0,0.00021369,2]
[375139027,1753541443750,-460.0,0.00021369,2]
[375139028,1753541443759,-487.0,0.0002137,2]
[375139029,1753541443769,-500.0,0.0002137,2]
[375139030,1753541443779,-260.0,0.00021398,2]
[375139031,1753541443789,-2000.0,0.00021425,2]
[375139032,1753541443799,-460.0,0.00021543,2]
[375139033,1753541443809,-179.78425889,0.00021611,2]
[375139034,1753541443818,-151.0,0.00021643,2]
[375139035,1753541443829,-151.0,0.00021643,2]
[375139036,1753541443838,-151.0,0.00021643,2]
[375139037,1753541443848,-460.0,0.00021643,2]
[375139038,1753541443862,-151.0,0.00021643,2]
[375139039,1753541443871,-1718.41,0.00021643,2]
[375139040,1753541443882,-460.0,0.00021643,2]
[375139041,1753541443893,-530.98,0.00021643,2]
[375139042,1753541443903,-151.0,0.00021643,2]
[375139043,1753541443913,-559.65,0.00021643,2]
[375139044,1753541443922,-460.0,0.00021643,2]
[375139045,1753541443935,-945.39,0.00021643,2]
[375139046,1753541443945,-460.0,0.00021643,2]
[375139047,1753541443955,-492.31,0.00021643,2]
[375139048,1753541443965,-460.0,0.00021643,2]
[375139049,1753541443977,-460.0,0.00021643,2]
[375139050,1753541443987,-2033.68,0.00021643,2]
[375139051,1753541443998,-1427.28,0.00021643,2]
[375139052,1753541444008,-1042.45,0.00021643,2]
[375139053,1753541444017,-460.0,0.00021643,2]
[375139054,1753541444027,-769.3,0.00021643,2]
[375139055,1753541444037,-1681.34,0.00021643,2]
[375139056,1753541444047,-513.58,0.00021643,2]
[375139057,1753541444056,-260.25231298,0.00021643,2]
[375139058,1753541444066,-460.0,0.00021643,2]
[375139059,1753541444077,-669.27,0.00021643,2]
[375139060,1753541444087,-460.0,0.00021643,2]
[375139061,1753541444096,-990.26,0.00021643,2]
[375139062,1753541444106,-460.0,0.00021643,2]
[375139063,1753541444115,-487.0,0.00021644,2]
[375139064,1753541444125,-500.0,0.00021644,2]
[375139065,1753541444135,-387.62,0.00021691,2]
[375139066,1753541444144,-1242.8,0.000218,2]
[375139067,1753541444153,-460.0,0.00021817,2]
[375139068,1753541444163,-783.00217492,0.00021847,2]
[375139069,1753541444172,-460.0,0.00021917,2]
[375139070,1753541444181,-1718.41,0.00021917,2]
[375139071,1753541444191,-460.0,0.00021917,2]
[375139072,1753541444200,-530.98,0.00021917,2]
[375139073,1753541444210,-559.65,0.00021917,2]
[375139074,1753541444220,-460.0,0.00021917,2]
[375139075,1753541444229,-945.39,0.00021917,2]
[375139076,1753541444239,-460.0,0.00021917,2]
[375139077,1753541444248,-492.31,0.00021917,2]
[375139078,1753541444258,-460.0,0.00021917,2]
[375139079,1753541444268,-460.0,0.00021917,2]
[375139080,1753541444277,-2033.68,0.00021917,2]
[375139081,1753541444287,-1427.28,0.00021917,2]
[375139082,1753541444297,-1042.45,0.00021917,2]
[375139083,1753541444306,-460.0,0.00021917,2]
[375139084,1753541444316,-769.3,0.00021917,2]
[375139085,1753541444326,-1681.34,0.00021917,2]
[375139086,1753541444336,-513.58,0.00021917,2]
[375139087,1753541444345,-460.0,0.00021917,2]
[375139088,1753541444355,-669.27,0.00021917,2]
[375139089,1753541444364,-385.01264945,0.00021917,2]
[375139090,1753541444374,-990.26,0.00021917,2]
[375139091,1753541444383,-460.0,0.00021917,2]
[375139092,1753541444394,-487.0,0.00021918,2]
[375139093,1753541444403,-500.0,0.00021918,2]
[375139094,1753541444413,-360.0,0.00021946,2]
[375139095,1753541444422,-500.0,0.00021973,2]
[375139096,1753541444431,-2500.0,0.00021973,2]
[375139097,1753541444441,-1246.53,0.00022,7]
[375139098,1753541444451,-353.20680426,0.00022,2]
[375139099,1753541444461,-35677.54727926,0.00022,2]
[375139100,1753541444538,-2005.53770016,0.00022,2]
[375139101,1753541444717,-460.0,0.00019178,2]
[375139102,1753541444727,-460.0,0.00019452,2]
[375139103,1753541444738,-220.0,0.00019726,2]
[375139104,1753541444747,-10612.9884766,0.00022,2]
[375139105,1753541444841,-11523.48946425,0.00022,2]
[375139106,1753541444852,-11997.85206322,0.00022,5]
[375139111,1753541446016,-2356.251372,0.00022,5]
[375139112,1753541446337,-56690.9672206,0.00022,5]
[375139113,1753541446348,-551.33143372,0.00022,2]
[375139114,1753541446358,-151.0,0.00022,7]
[375139115,1753541446368,-33087.34,0.00022,2]
[375139116,1753541446378,-151.0,0.00022,7]
[375139117,1753541446387,-151.0,0.00022,7]
[375139118,1753541446397,-151.0,0.00022,7]
[375139119,1753541446407,-151.0,0.00022,7]
[375139120,1753541446417,-151.0,0.00022,7]
[375139121,1753541446427,-151.0,0.00022,7]
[375139122,1753541446436,-151.0,0.00022,7]
[375139123,1753541446445,-151.0,0.00022,7]
[375139124,1753541446455,-151.0,0.00022,7]
[375139125,1753541446464,-151.0,0.00022,7]
[375139126,1753541446474,-151.0,0.00022,7]
[375139127,1753541446483,-151.0,0.00022,7]
[375139128,1753541446493,-151.0,0.00022,7]
[375139129,1753541446503,-151.0,0.00022,7]
[375139130,1753541446513,-151.0,0.00022,7]
[375139131,1753541446523,-151.0,0.00022,7]
[375139132,1753541446533,-151.0,0.00022,7]
[375139133,1753541446542,-151.0,0.00022,7]
[375139134,1753541446552,-151.0,0.00022,7]
[375139135,1753541446562,-151.0,0.00022,7]
[375139136,1753541446571,-151.0,0.00022,7]
[375139137,1753541446580,-151.0,0.00022,7]
[375139138,1753541446589,-150.0,0.00022,2]
[375139139,1753541446599,-391.82163,0.00022,7]
[375139140,1753541446608,-391.82163,0.00022,7]
[375139141,1753541446618,-391.82163,0.00022,7]
[375139142,1753541446627,-391.82163,0.00022,7]
[375139143,1753541446636,-198.0,0.00022,2]
[375139144,1753541446646,-1223.58969685,0.0002204,2]
[375139145,1753541446655,-400.0,0.00022091,2]
[375139146,1753541446665,-5000.0,0.000221,2]
[375139147,1753541446674,-151.0,0.00022191,7]
[375139148,1753541446683,-460.0,0.00022191,2]
[375139149,1753541446703,-1718.41,0.00022191,2]
[375139150,1753541446713,-460.0,0.00022191,2]
[375139151,1753541446723,-559.65,0.00022191,2]
[375139152,1753541446733,-460.0,0.00022191,2]
[375139153,1753541446743,-460.0,0.00022191,2]
[375139154,1753541446753,-492.31,0.00022191,2]
[375139155,1753541446763,-460.0,0.00022191,2]
[375139156,1753541446772,-2033.68,0.00022191,2]
[375139157,1753541446782,-1427.28,0.00022191,2]
[375139158,1753541446791,-1042.45,0.00022191,2]
[375139159,1753541446928,-460.0,0.00022191,2]
[375139160,1753541446938,-769.3,0.00022191,2]
[375139161,1753541446947,-1681.34,0.00022191,2]
[375139162,1753541446956,-513.58,0.00022191,2]
[375139163,1753541446965,-460.0,0.00022191,2]
[375139164,1753541446974,-669.27,0.00022191,2]
[375139165,1753541446984,-990.26,0.00022191,2]
[375139166,1753541446993,-460.0,0.00022191,2]
[375139167,1753541447002,-198.0,0.00022192,7]
[375139168,1753541447012,-487.0,0.00022192,2]
[375139169,1753541447021,-500.0,0.00022192,2]
[375139170,1753541447031,-287.51209431,0.00022384,2]
[375139171,1753541447040,-460.0,0.00022465,2]
[375139172,1753541447049,-1718.41,0.00022465,2]
[375139173,1753541447058,-460.0,0.00022465,2]
[375139174,1753541447067,-559.65,0.00022465,2]
[375139175,1753541447078,-460.0,0.00022465,2]
[375139176,1753541447087,-460.0,0.00022465,2]
[375139177,1753541447097,-492.31,0.00022465,2]
[375139178,1753541447106,-380.80102404,0.00022465,2]
[375139179,1753541447116,-2033.68,0.00022465,2]
[375139180,1753541447125,-1427.28,0.00022465,2]
[375139181,1753541447134,-1042.45,0.00022465,2]
[375139182,1753541447144,-460.0,0.00022465,2]
[375139183,1753541447153,-769.3,0.00022465,2]
[375139184,1753541447162,-1681.34,0.00022465,2]
[375139185,1753541447172,-513.58,0.00022465,2]
[375139186,1753541447181,-460.0,0.00022465,2]
[375139187,1753541447191,-669.27,0.00022465,2]
[375139188,1753541447199,-990.26,0.00022465,2]
[375139189,1753541447210,-460.0,0.00022465,2]
[375139190,1753541447219,-1772.67,0.00022465,2]
[375139191,1753541447228,-487.0,0.00022466,2]
[375139192,1753541447238,-500.0,0.00022466,2]
[375139193,1753541447247,-3744.44752974,0.0002249,7]
[375139194,1753541447256,-12629.83479014,0.0002249,7]
[375139195,1753541447266,-476.98041219,0.0002249,7]
[375139196,1753541447275,-214.8008262,0.0002249,7]
[375139197,1753541447289,-460.0,0.00022494,2]
[375139198,1753541447299,-151.0,0.000225,9]
[375139199,1753541447309,-1499.99000004,0.00022521,2]
[375139200,1753541447319,-186.547732,0.00022603,2]
[375139201,1753541447330,-460.0,0.00022739,2]
[375139202,1753541447339,-1718.41,0.00022739,2]
[375139203,1753541447348,-460.0,0.00022739,2]
[375139204,1753541447358,-559.65,0.00022739,2]
[375139205,1753541447367,-427.21068627,0.00022739,2]
[375139206,1753541447377,-460.0,0.00022739,2]
[375139207,1753541447386,-492.31,0.00022739,2]
[375139208,1753541447396,-2033.68,0.00022739,2]
[375139209,1753541447406,-1427.28,0.00022739,2]
[375139210,1753541447415,-1042.45,0.00022739,2]
[375139211,1753541447424,-460.0,0.00022739,2]
[375139212,1753541447434,-769.3,0.00022739,2]
[375139213,1753541447444,-1681.34,0.00022739,2]
[375139214,1753541447454,-513.58,0.00022739,2]
[375139215,1753541447463,-460.0,0.00022739,2]
[375139216,1753541447473,-669.27,0.00022739,2]
[375139217,1753541447482,-990.26,0.00022739,2]
[375139218,1753541447491,-460.0,0.00022739,2]
[375139219,1753541447500,-487.0,0.0002274,2]
[375139220,1753541447510,-500.0,0.0002274,2]
[375139221,1753541447519,-4000.0,0.00022748,4]
[375139222,1753541447528,-783.00217492,0.00022769,2]
[375139223,1753541447537,-164.0130505,0.00022822,2]
[375139224,1753541447548,-153.0,0.00022822,2]
[375139225,1753541447557,-153.0,0.00022822,2]
[375139226,1753541447567,-153.0,0.00022822,2]
[375139227,1753541447577,-153.0,0.00022822,2]
[375139228,1753541447586,-153.0,0.00022822,2]
[375139229,1753541447595,-151.0,0.00022823,5]
[375139230,1753541447604,-517.18,0.00022888,6]
[375139231,1753541447613,-23997.12395925,0.000229,7]
[375139232,1753541447623,-151.0,0.000229,7]
[375139233,1753541447632,-151.0,0.000229,7]
[375139234,1753541447641,-151.0,0.000229,7]
[375139235,1753541447651,-151.0,0.000229,7]
[375139236,1753541447661,-190.228664,0.000229,7]
[375139237,1753541447670,-391.82163,0.000229,7]
[375139238,1753541447680,-391.82163,0.000229,7]
[375139239,1753541447690,-517.18,0.000229,2]
[375139240,1753541447699,-151.0,0.00022918,7]
[375139241,1753541447709,-648.0,0.00022983,2]
[375139242,1753541447719,-2157.0,0.00022983,2]
[375139243,1753541447729,-969.0,0.00022983,2]
[375139244,1753541447739,-150.0,0.00022983,2]
[375139245,1753541447749,-517.18,0.00022988,7]
[375139246,1753541447759,-160.0,0.00023,2]
[375139247,1753541447770,-1000.0,0.00023,2]
[375139248,1753541447780,-1000.0,0.00023,2]
[375139249,1753541447792,-1000.0,0.00023,2]
[375139250,1753541447801,-1000.0,0.00023,2]
[375139251,1753541447811,-1000.0,0.00023,2]
[375139252,1753541447821,-1000.0,0.00023,2]
[375139253,1753541447831,-1000.0,0.00023,2]
[375139254,1753541447840,-1000.0,0.00023,2]
[375139255,1753541447850,-1000.0,0.00023,2]
[375139256,1753541447862,-1000.0,0.00023,2]
[375139257,1753541447871,-1000.0,0.00023,2]
[375139258,1753541447881,-1000.0,0.00023,2]
[375139259,1753541447892,-1000.0,0.00023,2]
[375139260,1753541447901,-1000.0,0.00023,2]
[375139261,1753541447911,-1000.0,0.00023,2]
[375139262,1753541447922,-1000.0,0.00023,2]
[375139263,1753541447932,-1011.43,0.00023,2]
[375139264,1753541447942,-151.0,0.00023013,7]
[375139265,1753541447953,-460.0,0.00023013,2]
[375139266,1753541447964,-1718.41,0.00023013,2]
[375139267,1753541447975,-460.0,0.00023013,2]
[375139268,1753541447985,-559.65,0.00023013,2]
[375139269,1753541447995,-344.84161345,0.00023013,2]
[375139270,1753541448005,-492.31,0.00023013,2]
[375139271,1753541448015,-2033.68,0.00023013,2]
[375139272,1753541448025,-1427.28,0.00023013,2]
[375139273,1753541448035,-1042.45,0.00023013,2]
[375139274,1753541448045,-460.0,0.00023013,2]
[375139275,1753541448054,-769.3,0.00023013,2]
[375139276,1753541448064,-1681.34,0.00023013,2]
[375139277,1753541448074,-513.58,0.00023013,2]
[375139278,1753541448085,-433.61733582,0.00023013,2]
[375139279,1753541448095,-669.27,0.00023013,2]
[375139280,1753541448104,-990.26,0.00023013,2]
[375139281,1753541448114,-460.0,0.00023013,2]
[375139282,1753541448124,-409.0,0.00023014,2]
[375139283,1753541448134,-198.0,0.00023014,7]
[375139284,1753541448144,-487.0,0.00023014,2]
[375139285,1753541448154,-500.0,0.00023014,2]
[375139286,1753541448165,-560.0,0.00023042,2]
[375139287,1753541448175,-178.204927,0.00023068,2]
[375139288,1753541448186,-599.0,0.0002307,2]
[375139289,1753541448197,-517.18,0.00023088,7]
[375139290,1753541448206,-341.118266,0.0002309,8]
[375139291,1753541448216,-599.0,0.00023091,2]
[375139292,1753541448225,-599.0,0.00023141,2]
[375139293,1753541448235,-599.0,0.00023145,2]
[375139294,1753541448244,-320.0252948,0.00023178,2]
[375139295,1753541448254,-356.6695192,0.00023178,2]
[375139296,1753541448264,-1155.7430388,0.00023178,2]
[375139297,1753541448273,-599.0,0.0002318,2]
[375139298,1753541448283,-517.18,0.00023188,4]
[375139299,1753541448293,-151.0,0.000232,6]
[375139300,1753541448303,-151.0,0.00023219,6]
[375139301,1753541448312,-599.0,0.00023238,2]
[375139302,1753541448322,-151.0,0.00023287,7]
[375139303,1753541448332,-460.0,0.00023287,2]
[375139304,1753541448342,-1718.41,0.00023287,2]
[375139305,1753541448351,-460.0,0.00023287,2]
[375139306,1753541448362,-559.65,0.00023287,2]
[375139307,1753541448371,-492.31,0.00023287,2]
[375139308,1753541448381,-2033.68,0.00023287,2]
[375139309,1753541448391,-1427.28,0.00023287,2]
[375139310,1753541448401,-1042.45,0.00023287,2]
[375139311,1753541448411,-535.62478109,0.00023287,2]
[375139312,1753541448421,-769.3,0.00023287,2]
[375139313,1753541448431,-1681.34,0.00023287,2]
[375139314,1753541448441,-513.58,0.00023287,2]
[375139315,1753541448451,-669.27,0.00023287,2]
[375139316,1753541448461,-990.26,0.00023287,2]
[375139317,1753541448470,-460.0,0.00023287,2]
[375139318,1753541448480,-487.0,0.00023288,2]
[375139319,1753541448489,-500.0,0.00023288,2]
[375139320,1753541448499,-517.18,0.00023288,2]
[375139321,1753541448510,-599.0,0.00023299,2]
[375139322,1753541448520,-1246.53,0.000233,7]
[375139323,1753541448530,-33087.34,0.000233,2]
[375139324,1753541448539,-151.0,0.000233,7]
[375139325,1753541448549,-151.0,0.000233,7]
[375139326,1753541448558,-151.0,0.000233,7]
[375139327,1753541448568,-391.82163,0.000233,7]
[375139328,1753541448578,-391.82163,0.000233,7]
[375139329,1753541448588,-599.0,0.0002336,2]
[375139330,1753541448598,-599.0,0.00023383,2]
[375139331,1753541448612,-517.18,0.00023388,7]
[375139332,1753541448625,-599.0,0.00023412,2]
[375139333,1753541448635,-599.0,0.00023416,2]
[375139334,1753541448645,-151.0,0.00023477,7]
[375139335,1753541448655,-1317.70069205,0.00023478,20]
[375139336,1753541448665,-151.0,0.00023478,7]
[375139337,1753541448674,-517.18,0.00023488,4]
[375139338,1753541448684,-599.0,0.00023499,2]
[375139339,1753541448693,-581.43,0.00023499,2]
[375139340,1753541448703,-12500.0,0.0002352,7]
[375139341,1753541448712,-12500.0,0.00023558,7]
[375139342,1753541448722,-151.0,0.00023561,7]
[375139343,1753541448733,-460.0,0.00023561,2]
[375139344,1753541448742,-1718.41,0.00023561,2]
[375139345,1753541448752,-460.0,0.00023561,2]
[375139346,1753541448761,-559.65,0.00023561,2]
[375139347,1753541448771,-492.31,0.00023561,2]
[375139348,1753541448781,-2033.68,0.00023561,2]
[375139349,1753541448790,-1427.28,0.00023561,2]
[375139350,1753541448801,-1042.45,0.00023561,2]
[375139351,1753541448812,-769.3,0.00023561,2]
[375139352,1753541448821,-1681.34,0.00023561,2]
[375139353,1753541448832,-513.58,0.00023561,2]
[375139354,1753541448841,-669.27,0.00023561,2]
[375139355,1753541448851,-990.26,0.00023561,2]
[375139356,1753541448865,-460.0,0.00023561,2]
[375139357,1753541448875,-487.0,0.00023562,2]
[375139358,1753541448885,-500.0,0.00023562,2]
[375139359,1753541448895,-599.0,0.00023563,2]
[375139360,1753541448905,-151.0,0.0002357,7]
[375139361,1753541448915,-660.0,0.0002359,2]
[375139362,1753541448925,-160.0,0.000236,3]
[375139363,1753541448935,-526.41699184,0.000236,3]
[375139364,1753541448944,-643.0,0.000236,2]
[375139365,1753541448954,-439.11471075,0.000236,3]
[375139366,1753541448964,-160.0,0.000236,3]
[375139367,1753541448973,-500.0,0.000236,2]
[375139368,1753541448983,-500.0,0.000236,2]
[375139369,1753541448993,-12629.83479014,0.000236,3]
[375139370,1753541449002,-476.98041219,0.000236,3]
[375139371,1753541449012,-214.8008262,0.000236,3]
[375139372,1753541449022,-2800.18016611,0.00023603,3]
[375139373,1753541449032,-151.0,0.00023603,7]
[375139374,1753541449042,-151.0,0.00023603,7]
[375139375,1753541449051,-191.239735,0.00023603,7]
[375139376,1753541449060,-151.0,0.00023603,7]
[375139377,1753541449070,-324.0,0.00023603,3]
[375139378,1753541449080,-324.0,0.00023603,3]
[375139379,1753541449090,-324.0,0.00023603,3]
[375139380,1753541449100,-324.0,0.00023603,3]
[375139381,1753541449109,-324.0,0.00023603,3]
[375139382,1753541449118,-324.0,0.00023603,3]
[375139383,1753541449128,-324.0,0.00023603,3]
[375139384,1753541449138,-324.0,0.00023603,3]
[375139385,1753541449234,-324.0,0.00023603,3]
[375139386,1753541449245,-324.0,0.00023603,3]
[375139387,1753541449254,-337.05611235,0.00023603,3]
[375139388,1753541449264,-151.0,0.00023603,7]
[375139389,1753541449274,-152.0,0.00023603,3]
[375139390,1753541449284,-529.55405847,0.00023603,3]
[375139391,1753541449293,-160.0,0.00023603,3]
[375139392,1753541449303,-152.0,0.00023603,3]
[375139393,1753541449312,-160.0,0.00023603,3]
[375139394,1753541449322,-152.0,0.00023603,3]
[375139395,1753541449333,-160.0,0.00023603,3]
[375139396,1753541449342,-152.0,0.00023603,3]
[375139397,1753541449352,-152.0,0.00023603,3]
[375139398,1753541449363,-152.0,0.00023603,3]
[375139399,1753541449372,-152.0,0.00023603,3]
[375139400,1753541449383,-152.0,0.00023603,3]
[375139401,1753541449394,-152.0,0.00023603,3]
[375139402,1753541449404,-152.0,0.00023603,3]
[375139403,1753541449414,-152.0,0.00023603,3]
[375139404,1753541449423,-152.0,0.00023603,3]
[375139405,1753541449433,-152.0,0.00023603,3]
[375139406,1753541449443,-152.0,0.00023603,3]
[375139407,1753541449452,-152.0,0.00023603,3]
[375139408,1753541449462,-152.0,0.00023603,3]
[375139409,1753541449472,-152.0,0.00023603,3]
[375139410,1753541449482,-152.0,0.00023603,3]
[375139411,1753541449494,-151.0,0.00023603,7]
[375139412,1753541449504,-151.0,0.00023603,7]
[375139413,1753541449513,-293.75524,0.00023603,7]
[375139414,1753541449523,-151.0,0.00023603,7]
[375139415,1753541449534,-151.0,0.00023603,7]
[375139416,1753541449543,-151.0,0.0002361,7]
[375139417,1753541449553,-599.0,0.0002361,2]
[375139418,1753541449563,-151.0,0.00023614,6]
[375139419,1753541449572,-533.13,0.00023615,3]
[375139420,1753541449587,-599.0,0.00023621,2]
[375139421,1753541449597,-599.0,0.00023632,2]
[375139422,1753541449607,-599.0,0.00023633,2]
[375139423,1753541449617,-153.0,0.00023644,2]
[375139424,1753541449627,-153.0,0.00023644,2]
[375139425,1753541449637,-153.0,0.00023644,2]
[375139426,1753541449646,-153.0,0.00023644,2]
[375139427,1753541449656,-153.0,0.00023644,2]
[375139428,1753541449665,-153.0,0.00023644,2]
[375139429,1753541449675,-153.0,0.00023644,2]
[375139430,1753541449685,-153.0,0.00023644,2]
[375139431,1753541449694,-306.0,0.00023644,2]
[375139432,1753541449704,-153.0,0.00023644,2]
[375139433,1753541449714,-153.0,0.00023644,2]
[375139434,1753541449723,-153.0,0.00023644,2]
[375139435,1753541449733,-783.00217492,0.00023692,2]
[375139436,1753541449742,-517.18,0.00023701,5]
[375139437,1753541449752,-599.0,0.00023715,2]
[375139438,1753541449762,-599.0,0.00023723,2]
[375139439,1753541449771,-391.82163,0.00023729,7]
[375139440,1753541449781,-391.82163,0.00023729,7]
[375139441,1753541449790,-599.0,0.00023729,2]
[375139442,1753541449800,-517.18,0.00023801,4]
[375139443,1753541449810,-151.0,0.00023835,7]
[375139444,1753541449819,-460.0,0.00023835,2]
[375139445,1753541449828,-1718.41,0.00023835,2]
[375139446,1753541449838,-460.0,0.00023835,2]
[375139447,1753541449848,-151.0,0.00023835,7]
[375139448,1753541449861,-559.65,0.00023835,2]
[375139449,1753541449871,-492.31,0.00023835,2]
[375139450,1753541449880,-2033.68,0.00023835,2]
[375139451,1753541449889,-1427.28,0.00023835,2]
[375139452,1753541449898,-1042.45,0.00023835,2]
[375139453,1753541449908,-769.3,0.00023835,2]
[375139454,1753541449918,-1681.34,0.00023835,2]
[375139455,1753541449927,-513.58,0.00023835,2]
[375139456,1753541449936,-669.27,0.00023835,2]
[375139457,1753541449946,-990.26,0.00023835,2]
[375139458,1753541449955,-460.0,0.00023835,2]
[375139459,1753541449964,-487.0,0.00023836,2]
[375139460,1753541449975,-500.0,0.00023836,2]
[375139461,1753541449984,-599.0,0.00023845,2]
[375139462,1753541449994,-517.18,0.00023901,3]
[375139463,1753541450004,-599.0,0.00023944,2]
[375139464,1753541450013,-391.82163,0.00023988,7]
[375139465,1753541450023,-391.82163,0.00023988,7]
[375139466,1753541450032,-172.0,0.00023988,3]
[375139467,1753541450041,-152.0,0.00023988,3]
[375139468,1753541450051,-1754.0,0.00023988,3]
[375139469,1753541450061,-152.0,0.00023988,3]
[375139470,1753541450071,-1754.0,0.00023988,3]
[375139471,1753541450080,-152.0,0.00023988,3]
[375139472,1753541450091,-152.0,0.00023988,3]
[375139473,1753541450101,-152.0,0.00023988,3]
[375139474,1753541450110,-152.0,0.00023988,3]
[375139475,1753541450120,-1754.0,0.00023988,3]
[375139476,1753541450130,-152.0,0.00023988,3]
[375139477,1753541450139,-1754.0,0.00023988,3]